{"text_format":"3","workbook":"xlsx","n_sheets":9,"sheets":["Variablen","Version_Kennwort","Stammdaten","Antrag und Erstattungssatz ","EK-Zuschuss","Kosten und Förderung","Günstigerprüfung_Neustart-Hilfe","Zusammenfassung","Rechtliche Grundlagen"],"not_rendered":{"images":1,"defined_names":43,"comments":3},"read":"whole","date_system":"1900"}

{"sheet":"Variablen","index":0,"n_rows":22,"n_cols":6,"rows_kept":22,"hidden":true}
["Variablen"]
[]
[]
[null,"Umsatzeinbruch","Erstattungssatz"]
[null,{"v":0.7,"d":"70%"},{"v":1,"d":"100%"}]
[null,{"v":0.5,"d":"50%"},{"v":0.6,"d":"60%"}]
[null,{"v":0.3,"d":"30%"},{"v":0.4,"d":"40%"}]
[null,"Solo",{"v":0.25,"d":"25%"},5000]
[]
[null,"Eigenkapitalzuschuss",null,3,4,5]
[{"$nulls":3},0.25,0.35,0.4]
[]
["Förderung Personenunternehmen NRW Monatlich",{"v":1000,"d":"1,000.00 €"}]
[]
[]
["Textvariabeln"]
["Die Förderfähigkeit ist aufgrund eines Umsatzrückgangs in den Monaten"]
["unabhängig von einer bundesweiten Schließung gegeben."]
["Für den Monat Dezember 2020 wurde ein Umsatzrückgang von mindestens 30% festgestellt. Sollte das Unternehmen von einer bundesweiten Schließung betroffen sein, erhöht sich der maximale Fixkostenzuschss auf 500.000 €."]
[]
["Die Förderung nach tatsächlichen Kosten ist günstiger."]
["Die Förderung durch die Betriebskostenpauschale für Soloselbständige ist günstiger."]

{"sheet":"Version_Kennwort","index":1,"n_rows":37,"n_cols":2,"rows_kept":37,"merged":[[0,1,0,6],[4,1,4,3],[5,1,5,2],[13,1,13,9],[15,1,15,6],[18,1,18,7],[19,1,19,6],[24,1,24,3],[25,1,25,8],[26,1,26,8],[28,1,28,2],[29,1,29,4],[30,1,30,4],[31,1,31,3],[32,1,32,4],[33,1,33,2],[34,1,34,2],[36,1,36,3]]}
[null,"Überbrückungshilfe Phase 3\nHinweise und Impressum"]
[]
[null,"1. Versionshinweis"]
[null,"Version 2021.18.1"]
[null,"Stand: 24.11.2021 - berücksicht werden die FAQ mit Stand 21. November 2021"]
[null,"Vorliegen einer aktuelleren Version in der NWB Datenbank prüfen."]
[null,"NWB DOI XAAAH-68524"]
[]
[null,"2. Eingabefelder"]
[null,"Die Eingabefelder sind gelb hinterlegt."]
[]
[null,"3. Schreibschutz / Kennwort "]
[]
[null,"Die Arbeitsblätter sind - abgesehen von den Eingabefeldern - mit einem Schreibschutz belegt."]
[]
[null,"Das Kennwort für die Aufhebung des Schreibschutzes lautet:"]
[null,"nwbverlag"]
[]
[null,"Bitte beachten Sie, dass sich eine Veränderung der Gestaltung des Formulars auch"]
[null,"auf die Richtigkeit der Berechnungsformeln auswirken können. "]
[]
[null,"4. Autor"]
[null,"Dieses Berechnungsprogramm wird inhaltlich betreut von Olaf Stein."]
[]
[null,"5. Haftungsausschluss / AGB"]
[null,"Der NWB Verlag übernimmt keine Gewähr und keine Haftung für die Richtigkeit der Ergebnisse."]
[null,"Im Übrigen gelten die die aktuellen AGB der NWB Datenbank und des NWB Verlages."]
[]
[null,"6. Impressum"]
[null,"NWB Verlag GmbH & Co. KG"]
[null,"AG Bochum HRA 5124"]
[null,"Eschstr. 22 · 44629 Herne"]
[null,"Fon 02323.141-900 · Fax 02323.141-123"]
[null,"E-Mail: info@nwb.de"]
[null,"Internet: www.nwb.de"]
[]
[null,"Alle Rechte vorbehalten. Vervielfältigungen nur mit Zustimmung des Verlages."]

{"sheet":"Stammdaten","index":2,"n_rows":17,"n_cols":14,"rows_kept":17,"merged":[[0,1,0,7],[2,1,2,7],[4,2,4,7],[5,2,5,7],[6,2,6,7],[7,2,7,7],[9,3,9,7],[12,1,12,7]]}
[null,"Überbrückungshilfe Phase 3\nStammdaten"]
[]
[null,"1. Adresse und Gründungsdatum"]
[]
[null,"Mandantennummer"]
[null,"Name des Betriebes",{"$nulls":9},"Ja"]
[null,"Straße und Hausnr.",{"$nulls":9},"Nein"]
[null,"PLZ / Ort"]
[null,"Gründungsdatum","2019-01-01"]
[null,"Auswahl Vergleichsumsatz","1.","Vergleichsumsatz = \n1. Durchschnittlicher Monatsumsatz des Jahres 2019\n2. Durchschnittlicher Monatsumsatz der beiden Vorkrisenmonate Januar und Februar 2020\n3. Durchschnittlicher Monatsumsatz in den Monaten Juni bis September 2020\n4. Monatlicher Durchschnittswert des geschätzten Jahresumsatzes 2020, der bei der erstmaligen steuerlichen Erfassung beim zuständigen Finanzamt im „Fragebogen zur steuerlichen Erfassung“ angegeben wurde. Hierfür gilt eine maximale Höhe der Überbrückungshilfe von insgesamt 1.800.000 Euro.\n5. Verbundene Unternehmen: Kumulierter Umsatz. Hierfür gilt eine maximale Höhe der Überbrückungshilfe von insgesamt 3.000.000 Euro.\n6. KMU: Durchschnittlicher Monatsumsatz des Jahres 2019\n7. Wahlrecht begründete Härtefälle: alternative Vergleichszeiträume zur Ermittlung des Umsatzrückgangs im Jahr 2019",{"$nulls":7},"1.","Durchschnittlicher Monatsumsatz des Jahres 2019"]
[{"$nulls":11},{"$f":"IF(Gründungsdatum>=DATE(2019,1,1),\"2.\",\"-\")","v":"2."},"Durchschnittlicher Monatsumsatz der beiden Vorkrisenmonate Januar und Februar 2020"]
[{"$nulls":11},{"$f":"IF(Gründungsdatum>=DATE(2019,1,1),\"3.\",\"-\")","v":"3."},{"$f":"IF(Gründungsdatum>=DATE(2019,1,1),\"Durchschnittlicher Monatsumsatz in den Monaten Juni bis September 2020\",\"Bitte Eingaben im Blatt 'Stammdaten' überprüfen.\")","v":"Durchschnittlicher Monatsumsatz in den Monaten Juni bis September 2020"},"Monatlicher Durchschnittswert des geschätzten Jahresumsatzes 2020, der bei der erstmaligen steuerlichen Erfassung beim zuständigen Finanzamt im „Fragebogen zur steuerlichen Erfassung“ angegeben wurde. Hierfür gilt eine maximale Höhe der Überbrückungshilfe von insgesamt 1.800.000 Euro."]
[null,"2. Art der Berechnung",{"$nulls":9},{"$f":"IF(Gründungsdatum>=DATE(2019,1,1),\"4.\",\"-\")","v":"4."},{"$f":"IF(Gründungsdatum>=DATE(2019,1,1),+N12,\"Bitte Eingaben im Blatt 'Stammdaten' überprüfen.\")","v":"Monatlicher Durchschnittswert des geschätzten Jahresumsatzes 2020, der bei der erstmaligen steuerlichen Erfassung beim zuständigen Finanzamt im „Fragebogen zur steuerlichen Erfassung“ angegeben wurde. Hierfür gilt eine maximale Höhe der Überbrückungshilfe von insgesamt 1.800.000 Euro."}]
[{"$nulls":11},{"$f":"IF(Gründungsdatum>=DATE(2019,1,1),\"5.\",\"-\")","v":"5."},{"$f":"IF(Gründungsdatum>=DATE(2019,1,1),\"Verbundene Unternehmen: Kumulierter Umsatz. Hierfür gilt eine maximale Höhe der Überbrückungshilfe von insgesamt 3.000.000 Euro.\",\"Bitte Eingaben im Blatt 'Stammdaten' überprüfen.\")","v":"Verbundene Unternehmen: Kumulierter Umsatz. Hierfür gilt eine maximale Höhe der Überbrückungshilfe von insgesamt 3.000.000 Euro."}]
[null,"Umsatzschätzung bei Antragstellung 1",{"$nulls":9},"6.","KMU: Durchschnittlicher Monatsumsatz des Jahres 2019"]
[null,"oder",1,{"$nulls":8},"7.","Wahlrecht begründete Härtefälle: Alternative Vergleichszeiträume zur Ermittlung des Umsatzrückgangs im Jahr 2019"]
[null,"abschließende Antragstellung = Ist-Werte 2",{"$nulls":9},"trifft nicht zu","Umsatz Monat Vorjahr"]

{"sheet":"Antrag und Erstattungssatz ","index":3,"n_rows":20,"n_cols":10,"rows_kept":20,"merged":[[0,1,0,9],[19,1,19,9]]}
[null,"Überbrückungshilfe Phase 3\nErstattungssatz"]
[]
[]
[null,null,"Nov","Dez","Jan","Feb","März","April","Mai","Juni"]
[null,"Umsatz Jahr 2020/2021",{"v":0,"d":"0.00"},{"v":9000,"d":"9,000.00"},{"v":0,"d":"0.00"},{"v":4000,"d":"4,000.00"},{"v":1000,"d":"1,000.00"},{"v":2000,"d":"2,000.00"},{"v":1500,"d":"1,500.00"},{"v":1500,"d":"1,500.00"}]
[null,{"$f":"VLOOKUP(Stammdaten!C10,Stammdaten!L10:M17,2,TRUE)","v":"Durchschnittlicher Monatsumsatz des Jahres 2019"},{"v":0,"d":"0.00"},{"v":10000,"d":"10,000.00"},{"v":1000,"d":"1,000.00"},{"v":10000,"d":"10,000.00"},{"v":5000,"d":"5,000.00"},{"v":1000,"d":"1,000.00"},{"v":7000,"d":"7,000.00"},{"v":7000,"d":"7,000.00"}]
[null,"Auswahl Vergleichsumsatz siehe Blatt \"Stammdaten\""]
[null,"Umsatzrückgang absolut",{"$f":"+C5-C6","v":{"v":0,"d":"0.00"}},{"v":-1000,"d":"-1,000.00 "},{"v":-1000,"d":"-1,000.00 "},{"v":-6000,"d":"-6,000.00 "},{"v":-4000,"d":"-4,000.00 "},{"v":1000,"d":"1,000.00"},{"v":-5500,"d":"-5,500.00 "},{"v":-5500,"d":"-5,500.00 "}]
[null,"Umsatzrückgang in %",{"$f":"IF(C5-C6=0,0,((-C8+0.001)/(C6+0.001)))","v":{"v":0,"d":"0.00%"}},{"$f":"IF(D5-D6=0,0,((-D8+0.001)/(D6+0.001)))","v":{"v":0.100000089999991,"d":"10.00%"}},{"v":1,"d":"100.00%"},{"v":0.600000039999996,"d":"60.00%"},{"v":0.800000039999992,"d":"80.00%"},{"v":-0.999998000002,"d":"-100.00%"},{"v":0.7857143163265262,"d":"78.57%"},{"v":0.7857143163265262,"d":"78.57%"}]
[]
[null,"Antragsberechtigung ist gegeben:",{"$f":"+IF(C9>=30%,\"Ja\",\"Nein\")","v":"Nein"},{"$f":"+IF(D9>=30%,\"Ja\",\"Nein\")","v":"Nein"},"Ja","Ja","Ja","Nein","Ja","Ja"]
[]
[null,"Erstattungssatz",{"$f":"+IF(Umsatzrückgang_in<=Variablen!B7,0,IF(Umsatzrückgang_in<=Variablen!B6,Variablen!C7,IF(Umsatzrückgang_in<=Variablen!B5,Variablen!C6,Variablen!C5)))","v":{"v":0,"d":"0.00%"}},{"v":0,"d":"0.00%"},{"v":1,"d":"100.00%"},{"v":0.6,"d":"60.00%"},{"v":1,"d":"100.00%"},{"v":0,"d":"0.00%"},{"v":1,"d":"100.00%"},{"v":1,"d":"100.00%"}]
[]
[null,"Die Ersattungssätze lauten:","Umsatzeinbruch","Erstattungssatz"]
[null,null,">= 70%",{"v":1,"d":"100%"}]
[null,null,">= 50%",{"v":0.6,"d":"60%"}]
[null,null,">= 30%",{"v":0.4,"d":"40%"}]
[]
[null,"Bitte beachten: Ggf. muss ein bereits gestellter Antrag auf Nov.-/ Dez.-Hilfe zugunsten eines höher beförderten Antrages auf Nov.-/ Dez.-Hilfe PLUS im Rahmen der Überbrückungshilfe 3 zurückgezogen werden. \nDieses Vorgehen ist jeweils individuell zu prüfen."]

{"sheet":"EK-Zuschuss","index":4,"n_rows":14,"n_cols":21,"rows_kept":14,"merged":[[0,1,0,9],[17,1,17,9]]}
[null,"Überbrückungshilfe Phase 3\nEigenkapitalzuschuss"]
[]
[null,"Daten aus Blatt \"Antrag und Erstattungssatz\""]
[null,null,"Nov","Dez","Jan","Feb","März","April","Mai","Juni"]
[null,{"$f":"'Antrag und Erstattungssatz '!B5","v":"Umsatz Jahr 2020/2021"},{"$f":"'Antrag und Erstattungssatz '!C5","v":{"v":0,"d":"0.00"}},{"$f":"'Antrag und Erstattungssatz '!D5","v":{"v":9000,"d":"9,000.00"}},{"$f":"'Antrag und Erstattungssatz '!E5","v":{"v":0,"d":"0.00"}},{"$f":"'Antrag und Erstattungssatz '!F5","v":{"v":4000,"d":"4,000.00"}},{"$f":"'Antrag und Erstattungssatz '!G5","v":{"v":1000,"d":"1,000.00"}},{"$f":"'Antrag und Erstattungssatz '!H5","v":{"v":2000,"d":"2,000.00"}},{"$f":"'Antrag und Erstattungssatz '!I5","v":{"v":1500,"d":"1,500.00"}},{"$f":"'Antrag und Erstattungssatz '!J5","v":{"v":1500,"d":"1,500.00"}}]
[null,{"$f":"'Antrag und Erstattungssatz '!B6","v":"Durchschnittlicher Monatsumsatz des Jahres 2019"},{"$f":"'Antrag und Erstattungssatz '!C6","v":{"v":0,"d":"0.00"}},{"$f":"'Antrag und Erstattungssatz '!D6","v":{"v":10000,"d":"10,000.00"}},{"$f":"'Antrag und Erstattungssatz '!E6","v":{"v":1000,"d":"1,000.00"}},{"$f":"'Antrag und Erstattungssatz '!F6","v":{"v":10000,"d":"10,000.00"}},{"$f":"'Antrag und Erstattungssatz '!G6","v":{"v":5000,"d":"5,000.00"}},{"$f":"'Antrag und Erstattungssatz '!H6","v":{"v":1000,"d":"1,000.00"}},{"$f":"'Antrag und Erstattungssatz '!I6","v":{"v":7000,"d":"7,000.00"}},{"$f":"'Antrag und Erstattungssatz '!J6","v":{"v":7000,"d":"7,000.00"}}]
[]
[null,"Umsatzrückgang absolut",{"$f":"'Antrag und Erstattungssatz '!C8","v":{"v":0,"d":"0.00"}},{"$f":"'Antrag und Erstattungssatz '!D8","v":{"v":-1000,"d":"-1,000.00 "}},{"$f":"'Antrag und Erstattungssatz '!E8","v":{"v":-1000,"d":"-1,000.00 "}},{"$f":"'Antrag und Erstattungssatz '!F8","v":{"v":-6000,"d":"-6,000.00 "}},{"$f":"'Antrag und Erstattungssatz '!G8","v":{"v":-4000,"d":"-4,000.00 "}},{"$f":"'Antrag und Erstattungssatz '!H8","v":{"v":1000,"d":"1,000.00"}},{"$f":"'Antrag und Erstattungssatz '!I8","v":{"v":-5500,"d":"-5,500.00 "}},{"$f":"'Antrag und Erstattungssatz '!J8","v":{"v":-5500,"d":"-5,500.00 "}},{"$nulls":3},"Nov","Dez","Jan","Feb","März","Apr","Mai","Juni"]
[null,"Umsatzrückgang in % \n(wenn Nov.-/Dez.-Hilfe erhalten: 50%)",{"$f":"IF(C10=\"Ja\",0.5,'Antrag und Erstattungssatz '!C9)","v":{"v":0.5,"d":"50.00%"}},{"$f":"IF(D10=\"Ja\",0.5,'Antrag und Erstattungssatz '!D9)","v":{"v":0.5,"d":"50.00%"}},{"$f":"'Antrag und Erstattungssatz '!E9","v":{"v":1,"d":"100.00%"}},{"$f":"'Antrag und Erstattungssatz '!F9","v":{"v":0.600000039999996,"d":"60.00%"}},{"$f":"'Antrag und Erstattungssatz '!G9","v":{"v":0.800000039999992,"d":"80.00%"}},{"$f":"'Antrag und Erstattungssatz '!H9","v":{"v":-0.999998000002,"d":"-100.00%"}},{"$f":"'Antrag und Erstattungssatz '!I9","v":{"v":0.7857143163265262,"d":"78.57%"}},{"$f":"'Antrag und Erstattungssatz '!J9","v":{"v":0.7857143163265262,"d":"78.57%"}},{"$nulls":3},{"$f":"IF(C9>=50%,1,0)","v":1},{"$f":"IF(D9>=50%,1,0)","v":1},1,1,1,0,1,1]
[null,"November-/Dezemberhilfe erhalten?","Ja","Ja",{"$nulls":7},"Ja"]
[{"$nulls":11},"Nein"]
[null,"erforderlicher Umsatzrückgang gegeben:",{"$f":"IF(C9>=50%,\"Ja\",\"Nein\")","v":"Ja"},{"$f":"IF(D9>=50%,\"Ja\",\"Nein\")","v":"Ja"},"Ja","Ja","Ja","Nein","Ja","Ja"]
[]
[null,"Eigenkapitalzuschuss: Förderungssatz","-","-",{"$f":"IF(E12=\"Ja\",IF(P14>=Variablen!$F$10,Variablen!$F$11,IF(P14=Variablen!$E$10,Variablen!$E$11,IF(P14=Variablen!$D$10,Variablen!$D$11,0))),0)","v":{"v":0.25,"d":"25.00%"}},{"$f":"IF(F12=\"Ja\",IF(Q14>=Variablen!$F$10,Variablen!$F$11,IF(Q14=Variablen!$E$10,Variablen!$E$11,IF(Q14=Variablen!$D$10,Variablen!$D$11,0))),0)","v":{"v":0.35,"d":"35.00%"}},{"$f":"IF(G12=\"Ja\",IF(R14>=Variablen!$F$10,Variablen!$F$11,IF(R14=Variablen!$E$10,Variablen!$E$11,IF(R14=Variablen!$D$10,Variablen!$D$11,0))),0)","v":{"v":0.4,"d":"40.00%"}},{"$f":"IF(H12=\"Ja\",IF(S14>=Variablen!$F$10,Variablen!$F$11,IF(S14=Variablen!$E$10,Variablen!$E$11,IF(S14=Variablen!$D$10,Variablen!$D$11,0))),0)","v":{"v":0,"d":"0.00%"}},{"$f":"IF(I12=\"Ja\",IF(T14>=Variablen!$F$10,Variablen!$F$11,IF(T14=Variablen!$E$10,Variablen!$E$11,IF(T14=Variablen!$D$10,Variablen!$D$11,0))),0)","v":{"v":0.4,"d":"40.00%"}},{"$f":"IF(J12=\"Ja\",IF(U14>=Variablen!$F$10,Variablen!$F$11,IF(U14=Variablen!$E$10,Variablen!$E$11,IF(U14=Variablen!$D$10,Variablen!$D$11,0))),0)","v":{"v":0.4,"d":"40.00%"}},{"$nulls":5},{"$f":"COUNTIF(C12:E12,\"Ja\")","v":3},{"$f":"COUNTIF(C12:F12,\"Ja\")","v":4},{"$f":"COUNTIF(C12:G12,\"Ja\")","v":5},{"$f":"COUNTIF(C12:H12,\"Ja\")","v":5},{"$f":"COUNTIF(C12:I12,\"Ja\")","v":6},{"$f":"COUNTIF(C12:J12,\"Ja\")","v":7}]

{"sheet":"Kosten und Förderung","index":5,"n_rows":45,"n_cols":22,"rows_kept":45,"merged":[[0,1,0,11],[3,1,3,2],[34,1,34,4],[36,1,36,2],[37,1,37,2],[38,1,38,2],[39,1,39,2],[42,1,42,2],[43,1,43,2],[44,1,44,2]]}
[null,"Überbrückungshilfe Phase 3\nKosten und Förderung"]
[]
[]
[null,"1. Berücksichtigungsfähige Kosten"]
[{"$nulls":3},"2020-11-01","2020-12-01","2021-01-01","2021-02-01","2021-03-01","2021-04-01","2021-05-01","2021-06-01"]
[null,"1.","Mieten und Pachten",{"v":100,"d":"100.00"},{"v":1000,"d":"1,000.00"},{"v":100,"d":"100.00"},{"v":100,"d":"100.00"},{"v":100,"d":"100.00"},{"v":100,"d":"100.00"},{"v":100,"d":"100.00"},{"v":100,"d":"100.00"}]
[null,"2.","weitere Mietkosten"]
[null,"3.","Zinsaufwendungen für Kredite und Darlehen"]
[null,"4.","Abschreibungen auf Wirtschaftsgüter des AV\n- näheres siehe Anhang 2 der FAQ",{"v":400,"d":"400.00"},{"v":200,"d":"200.00"},{"v":400,"d":"400.00"},{"v":400,"d":"400.00"},{"v":400,"d":"400.00"},{"v":400,"d":"400.00"},{"v":400,"d":"400.00"},{"v":400,"d":"400.00"}]
[null,"4a.","- davon zu berücksichtigen: 50%",{"$f":"+Abschreibungen*0.5","v":{"v":200,"d":"200.00"}},{"v":100,"d":"100.00"},{"v":200,"d":"200.00"},{"v":200,"d":"200.00"},{"v":200,"d":"200.00"},{"v":200,"d":"200.00"},{"v":200,"d":"200.00"},{"v":200,"d":"200.00"}]
[null,"5.","Finanzierungskostenanteil von Leasingraten"]
[null,"6.","Ausgaben für notwendige Instandhaltung, Wartung und Einlagerung von Anlagevermögen und gemieteten und geleasten Vermögensgegenständen, einschließlich EDV"]
[null,"7.","Ausgaben für Elektrizität, Wasser, Heizung, Reinigung"]
[null,"8.","Grundsteuern"]
[null,"9.","Betriebliche Lizenzgebühren"]
[null,"10.","Versicherungen, Abonnements und \nandere feste Ausgaben"]
[null,"11.","Kosten für Steuerberater, Wirtschaftsprüfer oder vereidigte Buchprüfer, die im Rahmen der Beantragung der Corona-Überbrückungshilfe Phase 3 anfallen. ",{"v":100,"d":"100.00"},{"v":100,"d":"100.00"},{"v":200,"d":"200.00"},{"v":200,"d":"200.00"},{"v":200,"d":"200.00"},{"v":200,"d":"200.00"},{"v":200,"d":"200.00"},{"v":200,"d":"200.00"}]
[null,"12.","Personalaufwendungen gegeben (ja/nein)","Ja","Ja","Ja","Ja","Ja","Ja","Ja","Nein",null,null,"Ja"]
[null,"12a.","(werden pauschal mit 20 % der Fixkosten \nNr. 1 - 11 berücksichtigt)",{"$f":"IF(D18=\"Ja\",SUM(D6:D8,D10:D13,D14:D17)*0.2,0)","v":{"v":80,"d":"80.00"}},{"v":240,"d":"240.00"},{"v":100,"d":"100.00"},{"v":100,"d":"100.00"},{"v":100,"d":"100.00"},{"v":100,"d":"100.00"},{"v":100,"d":"100.00"},{"v":0,"d":"0.00"},null,null,"Nein"]
[null,"13.","Kosten für Auszubildende"]
[null,"14.","bauliche Modernisierungs-, Renovierungs- oder Umbaumaßnahmen für Hygienemaßnahmen; Investitionen in Digitalisierung (z.B. Online-Shop); Summe aus 14a. Und 14b.\nVgl. Anhang 4 der FAQ",{"$f":"D23+D25","v":{"v":39672.13114754098,"d":"39,672.13"}},{"$f":"E23+E25","v":{"v":10327.868852459016,"d":"10,327.87"}},{"v":0,"d":"0.00"},{"v":20000,"d":"20,000.00"},{"v":0,"d":"0.00"},{"v":0,"d":"0.00"},{"v":0,"d":"0.00"},{"v":0,"d":"0.00"}]
[null,"14a.","bauliche Modernisierungs-, Renovierungs- oder Umbaumaßnahmen für Hygienemaßnahmen\nVgl. Anhang 4 der FAQ",{"v":30000,"d":"30,000.00"},{"v":10000,"d":"10,000.00"},null,{"v":30000,"d":"30,000.00"}]
[null,"14a.","- davon zu berücksichtigen: max. 20.000 € monatlich",{"$f":"IF(D22>20000,20000,D22)","v":{"v":20000,"d":"20,000.00"}},{"$f":"IF(E22>20000,20000,E22)","v":{"v":10000,"d":"10,000.00"}},{"v":0,"d":"0.00"},{"v":20000,"d":"20,000.00"},{"v":0,"d":"0.00"},{"v":0,"d":"0.00"},{"v":0,"d":"0.00"},{"v":0,"d":"0.00"}]
[null,"14b.","Investitionen in Digitalisierung im Zeitraum März 2020 - Juni 2021\nVgl. Anhang 4 der FAQ ",{"v":30000,"d":"30,000.00"},{"v":500,"d":"500.00"},{"$nulls":8},{"$f":"SUM(D24:K24)","v":{"v":30500,"d":"30,500.00 €"}},{"$f":"IF(D24>0,1,0)","v":1},{"$f":"IF(E25>0,1,0)","v":1},0,0,0,0,0,0]
[null,"14b.","- davon zu berücksichtigen: 20.000 €",{"$f":"IFERROR(D24/N24*N25,0)","v":{"v":19672.131147540982,"d":"19,672.13"}},{"$f":"IFERROR(E24/N24*N25,0)","v":{"v":327.8688524590164,"d":"327.87"}},{"$f":"IFERROR(F24/N24*N25,0)","v":{"v":0,"d":"0.00"}},{"$f":"IFERROR(G24/N24*N25,0)","v":{"v":0,"d":"0.00"}},{"$f":"IFERROR(H24/N24*N25,0)","v":{"v":0,"d":"0.00"}},{"$f":"IFERROR(I24/N24*N25,0)","v":{"v":0,"d":"0.00"}},{"$f":"IFERROR(J24/N24*N25,0)","v":{"v":0,"d":"0.00"}},{"$f":"IFERROR(K24/N24*N25,0)","v":{"v":0,"d":"0.00"}},null,null,{"$f":"IF(N24>20000,20000,N24)","v":{"v":20000,"d":"20,000.00 €"}}]
[null,"15.","Marketing\nMaximal in Höhe der entsprechenden Ausgaben im Jahre 2019. Bei Unternehmen, die zwischen dem 1. Januar 2019 und dem 30. April 2020 gegründet wurden: Marketing- und Werbekosten maximal in Höhe der entsprechenden Ausgaben für zwölf Monate in einem beliebigen Zeitraum seit Gründung."]
[null,"16.","Ausgaben für Hygienemaßnahmen\n- Anschaffung mobiler Luftreiniger bspw. durch Hepafilter oder UVC-Licht und die Nachrüstung bereits bestehender stationärer Luftreiniger durch Hepafilter oder UVC-Licht, Maßnahmen zur temporären Verlagerung des Geschäftsbetriebs in Außenbereiche.\n- Förderfähige Hygienemaßnahmen umfassen u. a. Einmalartikel zur Umsetzung von Hygienemaßnahmen, wie Schnelltests, Desinfektionsmitteln und Schutzmasken.\n- Schulung von Mitarbeiter/innen zu Hygienemaßnahmen\n- Besucher-/Kundenzählgeräte\n- Zur Berücksichtigung der besonderen Corona-Situation sind Hygiene-maßnahmen einschließlich investiver Maßnahmen entgegen der sonst gültigen Vorgaben auch förderfähig, wenn sie nach dem 1. Januar 2021 begründet sind.\nVgl. Anhang 4 der FAQ"]
[null,"17.","Reisebranche: \n1. Zurückgezahlte bzw. ausgebliebene Provisionen für Reisebüros oder Margen für Reiseveranstalter für Pauschalreisen, die  \n- vor dem 18.03.2020 gebucht, \n- seit dem 18.03.2020 im Zusammenhang mit Corona-bedingten Reisewarnungen des Auswärtigen Amtes bzw. innerdeutschen Reiseverboten oder temporären Grenzschließungen storniert (Rücktritt vom Reisevertrag) und  \n- die im Förderzeitraum November 2020 bis Juni 2021 von den Reisenden angetreten worden wären.\n2. bei zusätzlich erstattungsfähigen Kosten für Zeitraum 01.03.2020 bis 31.12.2020 und Umsatzrückgang > 30%: Personalkostenpauschale i.H.v. 50%\n3. Anschubhilfe in Höhe von 20 % der Lohnsumme, die im entsprechenden Referenzmonat 2019 angefallen wäre. Die max. Gesamtförderhöhe dieser Anschubhilfe beträgt 2 Mio. €."]
[null,"18.","Veranstaltungs- und Kulturbranche: Ausfall- und Vorbereitungskosten\n- wenn Umsatzrückgang >30% oder\n- die bis zu 12 Monate vor Beginn des geplanten Veranstaltungsdatums angefallen sind;\nweiteres siehe Anhang 1 der FAQ"]
[null,"19.","Einzelhandel, Großhandel und Hersteller: Wertverlust für verderbliche Ware und Saisonware\n- im Vergleichsmonat 2019  muss mindestens 70% des Umsatz aus Stationärem Handel erzielt worden sein\n- vgl. auch Anhang 2 der FAQ"]
[null,"20.","Kosten für Unternehmen der Pyrotechnikindustrie\n- für Dezember 2020 muss ein Umsatzeinbruch von mind. 80% vorliegen"]
[null,"21.","Pyrotechnikindustrie: Lager- und Transportkosten\n- für Dezember 2020 muss ein Umsatzeinbruch von mind. 80% vorliegen"]
[]
[]
[null,"2. Förderfähige Kosten, Erstattung und Förderung"]
[{"$nulls":3},"2020-11-01","2020-12-01","2021-01-01","2021-02-01","2021-03-01","2021-04-01","2021-05-01","2021-06-01"]
[null,"Förderfähige Kosten",null,{"$f":"+SUM(D26:D32,D19:D20,D21,D14:D17,D10:D13,D6:D8)","v":{"v":40152.13114754098,"d":"40,152.13"}},{"$f":"+SUM(E26:E32,E19:E20,E21,E14:E17,E10:E13,E6:E8)","v":{"v":11767.868852459016,"d":"11,767.87"}},{"v":600,"d":"600.00"},{"v":20600,"d":"20,600.00"},{"v":600,"d":"600.00"},{"v":600,"d":"600.00"},{"$f":"+SUM(J26:J32,J19:J20,J21,J14:J17,J10:J13,J6:J8)","v":{"v":600,"d":"600.00"}},{"v":500,"d":"500.00"}]
[null,"Erstattungssatz",null,{"$f":"'Antrag und Erstattungssatz '!C13","v":{"v":0,"d":"0.00%"}},{"$f":"'Antrag und Erstattungssatz '!D13","v":{"v":0,"d":"0.00%"}},{"$f":"'Antrag und Erstattungssatz '!E13","v":{"v":1,"d":"100.00%"}},{"$f":"'Antrag und Erstattungssatz '!F13","v":{"v":0.6,"d":"60.00%"}},{"$f":"'Antrag und Erstattungssatz '!G13","v":{"v":1,"d":"100.00%"}},{"$f":"'Antrag und Erstattungssatz '!H13","v":{"v":0,"d":"0.00%"}},{"$f":"'Antrag und Erstattungssatz '!I13","v":{"v":1,"d":"100.00%"}},{"$f":"'Antrag und Erstattungssatz '!J13","v":{"v":1,"d":"100.00%"}}]
[null,"Erstattung gem. maßgeblichem Erstattungssatz",null,{"$f":"+Erstattungssatz*Förderfähige_Kosten","v":{"v":0,"d":"0.00"}},{"v":0,"d":"0.00"},{"v":600,"d":"600.00"},{"v":12360,"d":"12,360.00"},{"v":600,"d":"600.00"},{"v":0,"d":"0.00"},{"v":600,"d":"600.00"},{"v":500,"d":"500.00"}]
[null,"Zwischensumme mögliche Förderung",null,{"$f":"SUM(D39:D39)","v":{"v":0,"d":"0.00"}},{"v":0,"d":"0.00"},{"v":600,"d":"600.00"},{"v":12360,"d":"12,360.00"},{"v":600,"d":"600.00"},{"v":0,"d":"0.00"},{"v":600,"d":"600.00"},{"v":500,"d":"500.00"},{"$f":"SUM(Förderung_gesamt)","v":{"v":14660,"d":"14,660.00"}}]
[null,"Förderung gesamt",null,{"$f":"IF(Stammdaten!C10=\"4.\",MIN(+D40,1800000),IF(Stammdaten!C10=\"5.\",MIN(+D40,3000000),MIN(+D40,1500000)))","v":{"v":0,"d":"0.00"}},{"$f":"IF(Stammdaten!C10=\"4.\",MIN(+E40,1800000),IF(Stammdaten!C10=\"5.\",MIN(+E40,3000000),MIN(+E40,1500000)))","v":{"v":0,"d":"0.00"}},{"$f":"IF(Stammdaten!C10=\"4.\",MIN(+F40,1800000),IF(Stammdaten!C10=\"5.\",MIN(+F40,3000000),MIN(+F40,1500000)))","v":{"v":600,"d":"600.00"}},{"$f":"IF(Stammdaten!C10=\"4.\",MIN(+G40,1800000),IF(Stammdaten!C10=\"5.\",MIN(+G40,3000000),MIN(+G40,1500000)))","v":{"v":12360,"d":"12,360.00"}},{"$f":"IF(Stammdaten!C10=\"4.\",MIN(+H40,1800000),IF(Stammdaten!C10=\"5.\",MIN(+H40,3000000),MIN(+H40,1500000)))","v":{"v":600,"d":"600.00"}},{"$f":"IF(Stammdaten!C10=\"4.\",MIN(+I40,1800000),IF(Stammdaten!C10=\"5.\",MIN(+I40,3000000),MIN(+I40,1500000)))","v":{"v":0,"d":"0.00"}},{"$f":"IF(Stammdaten!C10=\"4.\",MIN(+J40,1800000),IF(Stammdaten!C10=\"5.\",MIN(+J40,3000000),MIN(+J40,1500000)))","v":{"v":600,"d":"600.00"}},{"$f":"IF(Stammdaten!C10=\"4.\",MIN(+K40,1800000),IF(Stammdaten!C10=\"5.\",MIN(+K40,3000000),MIN(+K40,1500000)))","v":{"v":500,"d":"500.00"}},{"$f":"SUM(D41:K41)","v":{"v":14660,"d":"14,660.00"}}]
[]
[null,"Eigenkapitalzuschuss"]
[null,"EK-Zuschuss: Förderungssatz",null,"-","-",{"$f":"'EK-Zuschuss'!E14","v":{"v":0.25,"d":"25.00%"}},{"$f":"'EK-Zuschuss'!F14","v":{"v":0.35,"d":"35.00%"}},{"$f":"'EK-Zuschuss'!G14","v":{"v":0.4,"d":"40.00%"}},{"$f":"'EK-Zuschuss'!H14","v":{"v":0,"d":"0.00%"}},{"$f":"'EK-Zuschuss'!I14","v":{"v":0.4,"d":"40.00%"}},{"$f":"'EK-Zuschuss'!J14","v":{"v":0.4,"d":"40.00%"}}]
[null,"EK-Zuschuss: Betrag",{"$nulls":3},{"$f":"(F6+F7+F8+F10+F11+F12+F13+F14+F15+F16+F17)*F44*F38","v":{"v":125,"d":"125.00"}},{"$f":"(G6+G7+G8+G10+G11+G12+G13+G14+G15+G16+G17)*G44*G38","v":{"v":105,"d":"105.00"}},{"v":200,"d":"200.00"},{"v":0,"d":"0.00"},{"v":200,"d":"200.00"},{"v":200,"d":"200.00"},{"$f":"SUM(F45:K45)","v":{"v":830,"d":"830.00"}}]

{"sheet":"Günstigerprüfung_Neustart-Hilfe","index":6,"n_rows":27,"n_cols":19,"rows_kept":27,"merged":[[0,1,0,14],[3,5,4,5],[3,6,4,9],[6,1,6,7],[17,11,17,14],[18,7,18,9],[18,11,18,13],[19,7,19,8],[19,11,19,13]]}
[null,"Überbrückungshilfe Phase 3\nGünstigerprüfung Neustart-Hilfe"]
[]
[{"$nulls":16},"-"]
[null,"Soloselbständiger oder Ein-Personen-KapG (max. Neustart-Hilfe 7.500 €)  = 1",{"$nulls":3},2,"Bitte ggf. Antragsberechtigung gem. FAQ prüfen \n(siehe Arbeitsblatt \"Rechtliche Grundlagen\")",{"$nulls":9},1]
[null,"Mehr-Personen-KapG oder Genossenschaft (max. Neustart-Hilfe 30.000 €) = 2",{"$nulls":14},2]
[]
[null,{"$f":"+IF(F4=1,\"Vergleich: Summe maximaler Förderbetrag vs. 50% des Vergleichsumsatz, maximal 7.500 Euro.\",IF(F4=2,\"Vergleich: Summe maximaler Förderbetrag vs. 50% des Vergleichsumsatz, maximal 30.000 Euro.\",\"Diese Rechnung ist nicht relevant.\"))","v":"Vergleich: Summe maximaler Förderbetrag vs. 50% des Vergleichsumsatz, maximal 30.000 Euro."}]
[]
[null,"Berechnung der einmaligen Betriebskostenpauschale (Neustart-Hilfe):"]
[{"$nulls":16},"Monat","Zählung","Ja"]
[null,null,"2019-01-01","2019-02-01","2019-03-01","2019-04-01","2019-05-01","2019-06-01","2019-07-01","2019-08-01","2019-09-01","2019-10-01","2019-11-01","2019-12-01","Summe",null,"Jan",{"$f":"IF(C12=\"Ja\",1,0)","v":0},"Nein"]
[null,"Im Monat bereits gegründet?","Nein","Nein","Nein","Ja","Ja","Ja","Ja","Ja","Ja","Ja","Ja","Ja",null,null,"Feb",{"$f":"IF(D12=\"Ja\",1,0)","v":0}]
[null,"Umsatz",{"v":10000,"d":"10,000.00"},{"v":1000,"d":"1,000.00"},{"v":1000,"d":"1,000.00"},{"v":5000,"d":"5,000.00"},{"v":1000,"d":"1,000.00"},{"v":20000,"d":"20,000.00"},{"v":1000,"d":"1,000.00"},{"v":1000,"d":"1,000.00"},{"v":1000,"d":"1,000.00"},{"v":1000,"d":"1,000.00"},{"v":1000,"d":"1,000.00"},{"v":1000,"d":"1,000.00"},null,null,"März",{"$f":"IF(E12=\"Ja\",1,0)","v":0}]
[null,"berücksichtigt \nwird",{"$f":"IF(C12=\"Ja\",C13,0)","v":{"v":0,"d":"0.00"}},{"$f":"IF(D12=\"Ja\",D13,0)","v":{"v":0,"d":"0.00"}},{"v":0,"d":"0.00"},{"v":5000,"d":"5,000.00"},{"v":1000,"d":"1,000.00"},{"v":20000,"d":"20,000.00"},{"v":1000,"d":"1,000.00"},{"v":1000,"d":"1,000.00"},{"v":1000,"d":"1,000.00"},{"v":1000,"d":"1,000.00"},{"v":1000,"d":"1,000.00"},{"v":1000,"d":"1,000.00"},{"$f":"SUM(C14:N14)","v":{"v":32000,"d":"32,000.00"}},null,"April",{"$f":"IF(F12=\"Ja\",1,0)","v":1}]
[{"$nulls":16},"Mai",{"$f":"IF(G12=\"Ja\",1,0)","v":1}]
[{"$nulls":7},"= Summe Umsatz",null,null,{"$f":"O14","v":{"v":32000,"d":"32,000.00 €"}},{"$nulls":5},"Juni",{"$f":"IF(H12=\"Ja\",1,0)","v":1}]
[{"$nulls":7},"= Summe Öffnungsmonate",null,null,{"$f":"R24","v":9},{"$nulls":5},"Juli",{"$f":"IF(I12=\"Ja\",1,0)","v":1}]
[{"$nulls":7},"= Summe / Öffnungsmonate * 12 Monate",null,null,{"$f":"O14/R24*12","v":{"v":42666.66666666667,"d":"42,666.67 €"}},"= Vergleichsumsatz \n(nach Öffnungsmonaten gewichteter Umsatz)",{"$nulls":4},"August",{"$f":"IF(J12=\"Ja\",1,0)","v":1}]
[{"$nulls":7}," = Vergleichsumsatz /2 = ",null,null,{"$f":"+K18/2","v":{"v":21333.333333333336,"d":"21,333.33 €"}}," = Referenzumsatz "]
[{"$nulls":7},{"$f":"IF(F4=1,\"davon 50%; max. 7.500 €\",IF(F4=2,\"davon 50%; max. 30.000 €\",\"kein Ansatz\"))","v":"davon 50%; max. 30.000 €"},null,null,{"$f":"IF(F4=1,IF(K18*0.25>7500,7500,K18*0.25),IF(F4=2,IF(K18*0.25>30000,30000,K18*0.25),0))","v":{"v":10666.666666666668,"d":"10,666.67 €"}},"= einmalige Betriebskostenpauschale \n(Neustart-Hilfe)",{"$nulls":4},"Sept",{"$f":"IF(K12=\"Ja\",1,0)","v":1}]
[{"$nulls":16},"Okt",{"$f":"IF(L12=\"Ja\",1,0)","v":1}]
[{"$nulls":16},"Nov",{"$f":"IF(M12=\"Ja\",1,0)","v":1}]
[null,"Prüfung: Antrag Neustart-Hilfe (Betriebskostenpauschale)  vs. tatsächliche Kosten",{"$nulls":14},"Dez",{"$f":"IF(N12=\"Ja\",1,0)","v":1}]
[null,null,"Einmalige Betriebskostenpauschale (Neustart-Hilfe)",{"$nulls":6},{"$f":"K20","v":{"v":10666.666666666668,"d":"10,666.67 €"}},{"$nulls":6},"Summe",{"$f":"SUM(R11:R23)","v":9}]
[null,null,"Maximaler Förderbetrag Stufe 2 (siehe Blatt \"Kosten und Förderung\")",{"$nulls":6},{"$f":"+'Kosten und Förderung'!L40+'Kosten und Förderung'!L45","v":{"v":15490,"d":"15,490.00 €"}}]
[]
[null,null,{"$f":"IF(F4=1,IF(J24>J25,\"Neustart-Hilfe sollte beantragt werden.\",\"Förderung nach tatsächlichen Kosten sollte beantragt werden.\"),IF(F4=2,IF(J24>J25,\"Neustart-Hilfe sollte beantragt werden.\",\"Förderung nach tatsächlichen Kosten sollte beantragt werden.\"),\"Da keine Neustart-Hilfe beantragt werden kann wird auf die Regelförderung verwiesen.\"))","v":"Förderung nach tatsächlichen Kosten sollte beantragt werden."}]

{"sheet":"Zusammenfassung","index":7,"n_rows":33,"n_cols":10,"rows_kept":33,"merged":[[0,1,0,9],[4,2,4,5],[5,2,5,5],[6,2,6,5],[7,2,7,5],[25,1,25,2],[27,1,27,2],[28,1,28,3],[29,1,29,5],[30,1,30,5],[32,1,32,3],[36,4,36,5]]}
[null,"Überbrückungshilfe Phase 3\nZusammenfassung"]
[]
[]
[null,"1. Antragsberechtiger"]
[null,{"$f":"Stammdaten!B5","v":"Mandantennummer"},{"$f":"+Stammdaten!C5","v":0}]
[null,{"$f":"Stammdaten!B6","v":"Name des Betriebes"},{"$f":"+Stammdaten!C6","v":0}]
[null,{"$f":"Stammdaten!B7","v":"Straße und Hausnr."},{"$f":"+Stammdaten!C7","v":0}]
[null,{"$f":"Stammdaten!B8","v":"PLZ / Ort"},{"$f":"+Stammdaten!C8","v":0}]
[]
[null,{"$f":"+IF(Gründungsdatum<= DATEVALUE(\"30.4.2020\"),IF(Gründungsdatum>= DATEVALUE(\"1.8.2019\"),\"Bitte anders Berechnungstool verwenden!\",_xlfn.CONCAT(\"Gründungsdatum \",TEXT(Gründungsdatum,\"-> TT.MM.JJJJ\"))),\"Unternehmen ist nicht antragsberechtigt.\")","v":"Gründungsdatum -> 01.01.2019"}]
[null,{"$f":"IF(Stammdaten!C10=\"5.\",\"Verbundenes Unternehmen? -> Ja\",\"Verbundenes Unternehmen? -> Nein\")","v":"Verbundenes Unternehmen? -> Nein"}]
[]
[null,"2. Förderfähigkeit"]
[null,null,"2020-11-01","2020-12-01","2021-01-01","2021-02-01","2021-03-01","2021-04-01","2021-05-01","2021-06-01"]
[null,null,{"$f":"+'Antrag und Erstattungssatz '!C11","v":"Nein"},{"$f":"+'Antrag und Erstattungssatz '!D11","v":"Nein"},{"$f":"+'Antrag und Erstattungssatz '!E11","v":"Ja"},{"$f":"+'Antrag und Erstattungssatz '!F11","v":"Ja"},{"$f":"+'Antrag und Erstattungssatz '!G11","v":"Ja"},{"$f":"+'Antrag und Erstattungssatz '!H11","v":"Nein"},{"$f":"+'Antrag und Erstattungssatz '!I11","v":"Ja"},{"$f":"+'Antrag und Erstattungssatz '!J11","v":"Ja"}]
[null,"3. Erstattungssätze und Förderung"]
[null,null,"2020-11-01","2020-12-01","2021-01-01","2021-02-01","2021-03-01","2021-04-01","2021-05-01","2021-06-01"]
[null,"Erstattungssatz",{"$f":"+Erstattungssatz","v":{"v":0,"d":"0%"}},{"v":0,"d":"0%"},{"v":1,"d":"100%"},{"v":0.6,"d":"60%"},{"v":1,"d":"100%"},{"v":0,"d":"0%"},{"v":1,"d":"100%"},{"v":1,"d":"100%"}]
[]
[null,{"$f":"'Kosten und Förderung'!B37","v":"Förderfähige Kosten"},{"$f":"+'Kosten und Förderung'!D37","v":{"v":40152.13114754098,"d":"40,152.13 €"}},{"$f":"+'Kosten und Förderung'!E37","v":{"v":11767.868852459016,"d":"11,767.87 €"}},{"$f":"+'Kosten und Förderung'!F37","v":{"v":600,"d":"600.00 €"}},{"$f":"+'Kosten und Förderung'!G37","v":{"v":20600,"d":"20,600.00 €"}},{"$f":"+'Kosten und Förderung'!H37","v":{"v":600,"d":"600.00 €"}},{"$f":"+'Kosten und Förderung'!I37","v":{"v":600,"d":"600.00 €"}},{"$f":"+'Kosten und Förderung'!J37","v":{"v":600,"d":"600.00 €"}},{"$f":"+'Kosten und Förderung'!K37","v":{"v":500,"d":"500.00 €"}}]
[null,{"$f":"'Kosten und Förderung'!B39","v":"Erstattung gem. maßgeblichem Erstattungssatz"},{"$f":"+'Kosten und Förderung'!D39","v":{"v":0,"d":"0.00 €"}},{"$f":"+'Kosten und Förderung'!E39","v":{"v":0,"d":"0.00 €"}},{"$f":"+'Kosten und Förderung'!F39","v":{"v":600,"d":"600.00 €"}},{"$f":"+'Kosten und Förderung'!G39","v":{"v":12360,"d":"12,360.00 €"}},{"$f":"+'Kosten und Förderung'!H39","v":{"v":600,"d":"600.00 €"}},{"$f":"+'Kosten und Förderung'!I39","v":{"v":0,"d":"0.00 €"}},{"$f":"+'Kosten und Förderung'!J39","v":{"v":600,"d":"600.00 €"}},{"$f":"+'Kosten und Förderung'!K39","v":{"v":500,"d":"500.00 €"}}]
[null,"Maximaler Förderbetrag",{"$f":"'Kosten und Förderung'!D40","v":{"v":0,"d":"0.00 €"}},{"$f":"'Kosten und Förderung'!E40","v":{"v":0,"d":"0.00 €"}},{"$f":"'Kosten und Förderung'!F40","v":{"v":600,"d":"600.00 €"}},{"$f":"'Kosten und Förderung'!G40","v":{"v":12360,"d":"12,360.00 €"}},{"$f":"'Kosten und Förderung'!H40","v":{"v":600,"d":"600.00 €"}},{"$f":"'Kosten und Förderung'!I40","v":{"v":0,"d":"0.00 €"}},{"$f":"'Kosten und Förderung'!J40","v":{"v":600,"d":"600.00 €"}},{"$f":"'Kosten und Förderung'!K40","v":{"v":500,"d":"500.00 €"}}]
[null,"Summe Förderung bis Juni 2021",null,{"$f":"SUM(C22:J22)","v":{"v":14660,"d":"14,660.00 €"}}]
[]
[null,"Eigenkapitalzuschuss","-","-",{"$f":"'Kosten und Förderung'!F45","v":{"v":125,"d":"125.00 €"}},{"$f":"'Kosten und Förderung'!G45","v":{"v":105,"d":"105.00 €"}},{"$f":"'Kosten und Förderung'!H45","v":{"v":200,"d":"200.00 €"}},{"$f":"'Kosten und Förderung'!I45","v":{"v":0,"d":"0.00 €"}},{"$f":"'Kosten und Förderung'!J45","v":{"v":200,"d":"200.00 €"}},{"$f":"'Kosten und Förderung'!K45","v":{"v":200,"d":"200.00 €"}}]
[null,"Summe Förderung bis Juni 2021 inkl. EK-Zuschuss",null,{"$f":"D23+E25+F25+G25+H25+I25+J25","v":{"v":15490,"d":"15,490.00 €"}}]
[]
[null,{"$f":"IF('Günstigerprüfung_Neustart-Hilfe'!F4=2,\"5. Günstigerprüfung Neustart-Hilfe\",IF('Günstigerprüfung_Neustart-Hilfe'!F4=1,\"5. Günstigerprüfung Neustart-Hilfe\",\"\"))","v":"5. Günstigerprüfung Neustart-Hilfe"}]
[null,{"$f":"IF('Günstigerprüfung_Neustart-Hilfe'!F4=1,\"Summe Vergleichsumsatz 2019\",IF('Günstigerprüfung_Neustart-Hilfe'!F4=2,\"Summe Vergleichsumsatz 2019\",\"\"))","v":"Summe Vergleichsumsatz 2019"},{"$nulls":4},{"$f":"IF('Günstigerprüfung_Neustart-Hilfe'!F4=1,'Günstigerprüfung_Neustart-Hilfe'!K18,IF('Günstigerprüfung_Neustart-Hilfe'!F4=2,'Günstigerprüfung_Neustart-Hilfe'!K18,\"\"))","v":{"v":42666.66666666667,"d":"42,666.67 €"}}]
[null,{"$f":"IF('Günstigerprüfung_Neustart-Hilfe'!F4=1,\"Förderung: Betriebskostenpauschale = 50% des Referenzumsatz, Maximal 7.500 €\",IF('Günstigerprüfung_Neustart-Hilfe'!F4=2,\"Förderung: Betriebskostenpauschale = 50% des Referenzumsatz, maximal 30.000 €\",\"\"))","v":"Förderung: Betriebskostenpauschale = 50% des Referenzumsatz, maximal 30.000 €"},{"$nulls":4},{"$f":"IF('Günstigerprüfung_Neustart-Hilfe'!F4=1,'Günstigerprüfung_Neustart-Hilfe'!K20,IF('Günstigerprüfung_Neustart-Hilfe'!F4=2,'Günstigerprüfung_Neustart-Hilfe'!K20,\"\"))","v":{"v":10666.666666666668,"d":"10,666.67 €"}}]
[null,{"$f":"IF('Günstigerprüfung_Neustart-Hilfe'!F4=1,\"Im Vergleich die Förderung nach tatsächlichen Kosten\",IF('Günstigerprüfung_Neustart-Hilfe'!F4=2,\"Im Vergleich zur Förderung nach tatsächlichen Kosten\",\"\"))","v":"Im Vergleich zur Förderung nach tatsächlichen Kosten"},{"$nulls":4},{"$f":"IF('Günstigerprüfung_Neustart-Hilfe'!F4=1,D26,IF('Günstigerprüfung_Neustart-Hilfe'!F4=2,D26,\"\"))","v":{"v":15490,"d":"15,490.00 €"}}]
[]
[null,{"$f":"IF('Günstigerprüfung_Neustart-Hilfe'!F4=1,IF(G30>G31,text_Förderung_Pauschal,text_förderung_tatsächlich),IF('Günstigerprüfung_Neustart-Hilfe'!F4=2,IF(G30>G31,text_Förderung_Pauschal,text_förderung_tatsächlich),\"\"))","v":"Die Förderung nach tatsächlichen Kosten ist günstiger."}]

{"sheet":"Rechtliche Grundlagen","index":8,"n_rows":1,"n_cols":2,"rows_kept":1,"merged":[[0,1,0,8]]}
[null,"Überbrückungshilfe Phase 3\nRechtliche Grundlagen"]